[Event "2. Itzehoer Schach Open"]
[Site "Itzehoe, Germany"]
[Date "2023.04.29"]
[Round "2.3"]
[White "Neuendorf, Max"]
[Black "Lichtmannecker, Daniel"]
[Result "1-0"]
[TimeControl "90 min / 40 Züge + 30 min + 30 Sek pro Zug"]
[WhiteElo "2000"]
[BlackElo "2162"]

1. e4 {[%clk 01:30:57]} {[%emt 00:00:02]} c6 {[%clk 01:25:30]} {[%emt
00:05:31]} 2. d4 {[%clk 01:31:16]} {[%emt 00:00:10]} d5 {[%clk 01:25:52]}
{[%emt 00:00:07]} 3. Nd2 {[%clk 01:31:39]} {[%emt 00:00:07]} dxe4 {[%clk
01:26:12]} {[%emt 00:00:11]} 4. Nxe4 {[%clk 01:31:38]} {[%emt 00:00:31]} Bf5
{[%clk 01:26:34]} {[%emt 00:00:08]} 5. Ng3 {[%clk 01:31:47]} {[%emt 00:00:20]}
Bg6 {[%clk 01:26:51]} {[%emt 00:00:13]} 6. h4 {[%clk 01:31:56]} {[%emt
00:00:20]} h6 {[%clk 01:27:12]} {[%emt 00:00:09]} 7. h5 {[%clk 01:32:14]}
{[%emt 00:00:13]} Bh7 {[%clk 01:27:19]} {[%emt 00:00:23]} 8. Nf3 {[%clk
01:32:33]} {[%emt 00:00:10]} e6 {[%clk 01:26:17]} {[%emt 00:01:34]} 9. Bd3
{[%clk 01:31:35]} {[%emt 00:01:27]} Bxd3 {[%clk 01:26:37]} {[%emt 00:00:11]} 10.
Qxd3 {[%clk 01:31:57]} {[%emt 00:00:08]} Nf6 {[%clk 01:26:55]} {[%emt
00:00:12]} 11. Bd2 {[%clk 01:29:18]} {[%emt 00:03:07]} c5 {[%clk 01:26:25]}
{[%emt 00:01:01]} 12. O-O-O {[%clk 01:05:18]} {[%emt 00:24:29]} Nc6 {[%clk
01:26:14]} {[%emt 00:00:42]} 13. Be3 {[%clk 00:58:31]} {[%emt 00:07:15]} Qa5
{[%clk 01:26:16]} {[%emt 00:00:30]} 14. Qb3 {[%clk 00:54:30]} {[%emt 00:04:29]}
O-O-O {[%clk 01:24:06]} {[%emt 00:02:41]} 15. Ne2 {[%clk 00:31:08]} {[%emt
00:23:52]} Nd5 {[%clk 01:07:48]} {[%emt 00:16:49]} 16. Kb1 {[%clk 00:26:27]}
{[%emt 00:05:09]} Nxe3 {[%clk 01:06:26]} {[%emt 00:01:53]} 17. fxe3 {[%clk
00:26:40]} {[%emt 00:00:16]} cxd4 {[%clk 00:58:48]} {[%emt 00:08:09]} 18. exd4
{[%clk 00:26:31]} {[%emt 00:00:39]} Qb4 {[%clk 00:44:36]} {[%emt 00:14:42]} 19.
Qe3 {[%clk 00:20:46]} {[%emt 00:06:15]} Na5 {[%clk 00:37:16]} {[%emt 00:07:50]}
20. Ne5 {[%clk 00:20:44]} {[%emt 00:00:30]} Nc4 {[%clk 00:37:15]} {[%emt
00:00:32]} 21. Nxc4 {[%clk 00:19:41]} {[%emt 00:01:33]} Qxc4 {[%clk 00:37:39]}
{[%emt 00:00:06]} 22. Rd3 {[%clk 00:12:40]} {[%emt 00:07:30]} Qd5 {[%clk
00:24:29]} {[%emt 00:13:41]} 23. Nf4 {[%clk 00:09:45]} {[%emt 00:03:24]} Qg5
{[%clk 00:18:58]} {[%emt 00:06:01]} 24. Qf3 {[%clk 00:09:56]} {[%emt 00:00:19]}
Bd6 {[%clk 00:18:12]} {[%emt 00:01:16]} 25. Rc3+ {[%clk 00:09:32]} {[%emt
00:00:54]} Kb8 {[%clk 00:16:44]} {[%emt 00:01:59]} 26. Nd3 {[%clk 00:09:44]}
{[%emt 00:00:17]} Qf5 {[%clk 00:11:41]} {[%emt 00:05:33]} 27. Qe2 {[%clk
00:09:09]} {[%emt 00:01:04]} Qd5 {[%clk 00:11:37]} {[%emt 00:00:34]} 28. Ne5
{[%clk 00:06:24]} {[%emt 00:03:15]} Bxe5 {[%clk 00:10:58]} {[%emt 00:01:09]} 29.
dxe5 {[%clk 00:06:52]} {[%emt 00:00:02]} Qd2 {[%clk 00:09:35]} {[%emt
00:01:53]} 30. Qf3 {[%clk 00:07:15]} {[%emt 00:00:06]} Rd7 {[%clk 00:06:30]}
{[%emt 00:03:36]} 31. a3 {[%clk 00:07:17]} {[%emt 00:00:29]} Rhd8 {[%clk
00:06:32]} {[%emt 00:00:28]} 32. Qg3 {[%clk 00:06:57]} {[%emt 00:00:49]} Qg5
{[%clk 00:06:06]} {[%emt 00:00:57]} 33. Qxg5 {[%clk 00:05:38]} {[%emt
00:01:48]} hxg5 {[%clk 00:06:30]} {[%emt 00:00:05]} 34. Rf3 {[%clk 00:05:21]}
{[%emt 00:00:46]} Rd1+ {[%clk 00:01:14]} {[%emt 00:05:47]} 35. Rxd1 {[%clk
00:05:49]} {[%emt 00:00:02]} Rxd1+ {[%clk 00:01:43]} {[%emt 00:00:01]} 36. Ka2
{[%clk 00:06:09]} {[%emt 00:00:10]} Rd7 {[%clk 00:01:52]} {[%emt 00:00:21]} 37.
Kb3 {[%clk 00:04:24]} {[%emt 00:02:14]} Kc7 {[%clk 00:02:14]} {[%emt 00:00:08]}
38. Kc3 {[%clk 00:04:18]} {[%emt 00:00:36]} Kd8 {[%clk 00:00:50]} {[%emt
00:01:55]} 39. Rd3 {[%clk 00:04:36]} {[%emt 00:00:11]} Rxd3+ {[%clk 00:01:08]}
{[%emt 00:00:13]} 40. Kxd3 {[%clk 00:05:04]} {[%emt 00:00:02]} Ke7 {[%clk
00:01:27]} {[%emt 00:00:11]} 41. c4 {[%clk 00:19:15]} {[%emt 00:16:19]} f5
{[%clk 00:22:56]} {[%emt 00:09:01]} 42. exf6+ {[%clk 00:18:23]} {[%emt
00:01:22]} gxf6 {[%clk 00:22:52]} {[%emt 00:00:34]} 43. b4 {[%clk 00:17:27]}
{[%emt 00:01:26]} f5 {[%clk 00:22:21]} {[%emt 00:01:01]} 44. c5 {[%clk
00:17:18]} {[%emt 00:00:40]} e5 {[%clk 00:22:43]} {[%emt 00:00:08]} 45. b5
{[%clk 00:17:07]} {[%emt 00:00:40]} e4+ {[%clk 00:21:37]} {[%emt 00:01:37]} 46.
Ke3 {[%clk 00:15:59]} {[%emt 00:01:38]} Ke6 {[%clk 00:21:55]} {[%emt 00:00:12]}
47. c6 {[%clk 00:15:42]} {[%emt 00:00:47]} bxc6 {[%clk 00:22:20]} {[%emt
00:00:06]} 48. bxc6 {[%clk 00:16:07]} {[%emt 00:00:05]} Kd6 {[%clk 00:22:42]}
{[%emt 00:00:08]} 49. c7 {[%clk 00:16:08]} {[%emt 00:00:29]} Kxc7 {[%clk
00:23:07]} {[%emt 00:00:05]} 50. h6 {[%clk 00:16:34]} {[%emt 00:00:03]} 1-0

[Event "2. Itzehoer Schach Open"]
[Site "Itzehoe, Germany"]
[Date "2023.04.29"]
[Round "2.10"]
[White "Tarasenko, Nazar"]
[Black "Freitag, Christian"]
[Result "1/2-1/2"]
[TimeControl "90 min / 40 Züge + 30 min + 30 Sek pro Zug"]
[WhiteElo "1970"]
[BlackElo "1886"]

1. d4 {[%clk 01:30:55]} {[%emt 00:00:05]} d5 {[%clk 01:30:54]} {[%emt
00:00:06]} 2. c4 {[%clk 01:31:20]} {[%emt 00:00:05]} e6 {[%clk 01:31:20]}
{[%emt 00:00:04]} 3. Nc3 {[%clk 01:31:42]} {[%emt 00:00:08]} Nf6 {[%clk
01:31:45]} {[%emt 00:00:04]} 4. Bg5 {[%clk 01:30:34]} {[%emt 00:01:39]} Be7
{[%clk 01:31:46]} {[%emt 00:00:28]} 5. cxd5 {[%clk 01:30:58]} {[%emt 00:00:07]}
exd5 {[%clk 01:32:00]} {[%emt 00:00:16]} 6. e3 {[%clk 01:30:49]} {[%emt
00:00:38]} O-O {[%clk 01:32:19]} {[%emt 00:00:12]} 7. Qc2 {[%clk 01:30:22]}
{[%emt 00:00:56]} h6 {[%clk 01:32:42]} {[%emt 00:00:08]} 8. Bh4 {[%clk
01:29:12]} {[%emt 00:01:40]} c6 {[%clk 01:32:36]} {[%emt 00:00:36]} 9. Bd3
{[%clk 01:28:20]} {[%emt 00:01:21]} Re8 {[%clk 01:32:45]} {[%emt 00:00:21]} 10.
Nf3 {[%clk 01:28:10]} {[%emt 00:00:40]} Nbd7 {[%clk 01:32:16]} {[%emt
00:01:00]} 11. h3 {[%clk 01:28:13]} {[%emt 00:00:26]} Ne4 {[%clk 01:29:58]}
{[%emt 00:02:49]} 12. Bxe7 {[%clk 01:25:33]} {[%emt 00:03:10]} Qxe7 {[%clk
01:30:22]} {[%emt 00:00:06]} 13. O-O {[%clk 01:25:52]} {[%emt 00:00:11]} Ng5
{[%clk 01:26:18]} {[%emt 00:04:34]} 14. Qd1 {[%clk 01:24:41]} {[%emt 00:01:41]}
Nxf3+ {[%clk 01:24:32]} {[%emt 00:02:15]} 15. Qxf3 {[%clk 01:24:25]} {[%emt
00:00:47]} Qf6 {[%clk 01:24:29]} {[%emt 00:00:33]} 16. Qg3 {[%clk 01:24:18]}
{[%emt 00:00:37]} Nf8 {[%clk 01:23:18]} {[%emt 00:01:41]} 17. Rad1 {[%clk
01:23:46]} {[%emt 00:01:02]} Bf5 {[%clk 01:22:35]} {[%emt 00:01:13]} 18. Qf4
{[%clk 01:24:02]} {[%emt 00:00:13]} Bxd3 {[%clk 01:20:40]} {[%emt 00:02:26]} 19.
Qxf6 {[%clk 01:24:25]} {[%emt 00:00:07]} gxf6 {[%clk 01:21:05]} {[%emt
00:00:04]} 20. Rxd3 {[%clk 01:24:48]} {[%emt 00:00:08]} f5 {[%clk 01:18:19]}
{[%emt 00:03:16]} 21. g3 {[%clk 01:25:01]} {[%emt 00:00:16]} Nh7 {[%clk
01:16:03]} {[%emt 00:02:47]} 22. Na4 {[%clk 01:24:07]} {[%emt 00:01:24]} Nf6
{[%clk 01:14:18]} {[%emt 00:02:15]} 23. Rb3 {[%clk 01:23:31]} {[%emt 00:01:05]}
Re7 {[%clk 01:10:56]} {[%emt 00:03:53]} 24. f3 {[%clk 01:19:03]} {[%emt
00:04:58]} Ne8 {[%clk 01:09:05]} {[%emt 00:02:20]} 25. Kf2 {[%clk 01:17:28]}
{[%emt 00:02:05]} Nd6 {[%clk 01:09:02]} {[%emt 00:00:33]} 26. Rd3 {[%clk
01:16:20]} {[%emt 00:01:38]} Rae8 {[%clk 01:07:43]} {[%emt 00:01:50]} 27. b3
{[%clk 01:16:34]} {[%emt 00:00:17]} Kg7 {[%clk 01:06:48]} {[%emt 00:01:24]} 28.
Rc1 {[%clk 01:15:19]} {[%emt 00:01:45]} h5 {[%clk 01:05:09]} {[%emt 00:02:09]}
29. h4 {[%clk 01:14:45]} {[%emt 00:01:03]} f6 {[%clk 00:59:22]} {[%emt
00:06:18]} 30. Nc3 {[%clk 01:15:03]} {[%emt 00:00:12]} Kh6 {[%clk 00:56:29]}
{[%emt 00:03:23]} 31. Re1 {[%clk 01:12:57]} {[%emt 00:02:37]} Rg8 {[%clk
00:52:24]} {[%emt 00:04:34]} 32. Rg1 {[%clk 01:09:23]} {[%emt 00:04:03]} Reg7
{[%clk 00:52:16]} {[%emt 00:00:38]} 33. Ne2 {[%clk 01:07:09]} {[%emt 00:02:44]}
Re8 {[%clk 00:52:10]} {[%emt 00:00:37]} 34. Nf4 {[%clk 01:07:24]} {[%emt
00:00:15]} Ree7 {[%emt 00:03:58]} 35. a4 {[%clk 01:07:04]} Re8 {[%clk
00:49:44]} {[%emt 00:00:18]} 36. Rc3 {[%clk 01:06:11]} {[%emt 00:01:22]} a6
{[%clk 00:48:46]} {[%emt 00:01:29]} 37. Rc2 {[%clk 00:58:13]} {[%emt 00:08:28]}
Rge7 {[%clk 00:45:53]} {[%emt 00:03:22]} 38. Re2 {[%clk 00:58:04]} {[%emt
00:00:39]} Rg7 {[%clk 00:46:14]} {[%emt 00:00:09]} 39. Ke1 {[%clk 00:58:02]}
{[%emt 00:00:32]} Reg8 {[%clk 00:45:24]} {[%emt 00:01:20]} 40. Reg2 {[%clk
00:58:10]} {[%emt 00:00:23]} Re8 {[%clk 00:44:55]} {[%emt 00:00:58]} 41. Kd2
{[%clk 00:58:30]} {[%emt 00:00:10]} Ree7 {[%clk 00:42:56]} {[%emt 00:02:29]} 42.
Re1 {[%clk 00:56:46]} {[%emt 00:02:15]} Re8 {[%clk 00:42:50]} {[%emt 00:00:35]}
43. Kd3 {[%clk 00:53:07]} {[%emt 00:04:09]} Reg8 {[%clk 00:42:44]} {[%emt
00:00:36]} 44. Reg1 {[%clk 00:53:24]} {[%emt 00:00:13]} Nc8 {[%clk 00:38:46]}
{[%emt 00:04:29]} 45. Ke2 {[%clk 00:47:56]} {[%emt 00:05:57]} Nd6 {[%clk
00:39:09]} {[%emt 00:00:07]} 46. Kf2 {[%clk 00:47:49]} {[%emt 00:00:37]} Nc8
{[%clk 00:38:42]} {[%emt 00:00:58]} 47. Ne6 {[%clk 00:47:52]} {[%emt 00:00:26]}
Re7 {[%clk 00:38:55]} {[%emt 00:00:17]} 48. Nf4 {[%clk 00:48:04]} {[%emt
00:00:19]} Reg7 {[%clk 00:39:07]} {[%emt 00:00:17]} 49. Re1 {[%clk 00:48:28]}
{[%emt 00:00:06]} Nd6 {[%clk 00:39:15]} {[%emt 00:00:22]} 50. Re2 {[%clk
00:48:37]} {[%emt 00:00:22]} Re8 {[%clk 00:39:07]} {[%emt 00:00:37]} 51. Rg1
{[%clk 00:48:48]} {[%emt 00:00:19]} Reg8 {[%clk 00:38:58]} {[%emt 00:00:39]} 52.
Rc2 {[%clk 00:48:17]} {[%emt 00:01:02]} Re8 {[%clk 00:39:13]} {[%emt 00:00:15]}
53. Rc3 {[%clk 00:48:36]} {[%emt 00:00:11]} Reg8 {[%clk 00:39:27]} {[%emt
00:00:15]} 54. Rd3 {[%clk 00:49:02]} {[%emt 00:00:05]} Re8 {[%clk 00:39:29]}
{[%emt 00:00:28]} 55. Kg2 {[%clk 00:49:18]} {[%emt 00:00:14]} Rge7 {[%clk
00:37:58]} {[%emt 00:02:00]} 56. Re1 {[%clk 00:49:39]} {[%emt 00:00:10]} Nc8
{[%clk 00:36:20]} {[%emt 00:02:08]} 57. Re2 {[%emt 00:01:27]} 1/2-1/2

[Event "2. Itzehoer Schach Open"]
[Site "Itzehoe, Germany"]
[Date "2023.04.29"]
[Round "2.13"]
[White "Krumschmidt, Michael"]
[Black "Lebiedz, Oliver"]
[Result "0-1"]
[TimeControl "90 min / 40 Züge + 30 min + 30 Sek pro Zug"]
[WhiteElo "1720"]
[BlackElo "1921"]

1. d4 {[%clk 01:30:48]} {[%emt 00:00:10]} d6 {[%clk 01:29:46]} {[%emt
00:01:16]} 2. c4 {[%clk 01:29:45]} {[%emt 00:01:32]} Nf6 {[%clk 01:28:02]}
{[%emt 00:02:14]} 3. Nc3 {[%clk 01:29:59]} {[%emt 00:00:14]} g6 {[%clk
01:28:10]} {[%emt 00:00:25]} 4. e4 {[%clk 01:30:18]} {[%emt 00:00:10]} Bg7
{[%clk 01:28:18]} {[%emt 00:00:23]} 5. f3 {[%clk 01:30:38]} {[%emt 00:00:09]}
Nbd7 {[%clk 01:15:21]} {[%emt 00:13:28]} 6. Be3 {[%clk 01:26:31]} {[%emt
00:04:36]} e5 {[%clk 01:01:13]} {[%emt 00:14:38]} 7. d5 {[%clk 01:25:19]}
{[%emt 00:01:43]} a5 {[%clk 00:58:55]} {[%emt 00:02:48]} 8. Bd3 {[%clk
01:21:47]} {[%emt 00:04:00]} Nc5 {[%clk 00:55:30]} {[%emt 00:03:56]} 9. Bc2
{[%clk 01:22:00]} {[%emt 00:00:17]} Bd7 {[%clk 00:52:23]} {[%emt 00:03:38]} 10.
Nge2 {[%clk 01:12:23]} {[%emt 00:10:05]} Qe7 {[%clk 00:35:36]} {[%emt
00:17:18]} 11. Ba4 {[%clk 00:38:42]} {[%emt 00:34:11]} Nxa4 {[%clk 00:21:52]}
{[%emt 00:14:14]} 12. Nxa4 {[%clk 00:37:10]} {[%emt 00:02:02]} O-O {[%clk
00:19:33]} {[%emt 00:02:49]} 13. Rc1 {[%clk 00:35:49]} {[%emt 00:01:50]} b6
{[%clk 00:19:16]} {[%emt 00:00:49]} 14. Nac3 {[%clk 00:35:35]} {[%emt
00:00:43]} Ne8 {[%clk 00:17:07]} {[%emt 00:02:39]} 15. Qd2 {[%clk 00:34:23]}
{[%emt 00:01:43]} f5 {[%clk 00:17:09]} {[%emt 00:00:28]} 16. Bg5 {[%clk
00:33:38]} {[%emt 00:01:15]} Nf6 {[%clk 00:16:58]} {[%emt 00:00:41]} 17. Nb5
{[%clk 00:32:42]} {[%emt 00:01:26]} Rac8 {[%clk 00:16:13]} {[%emt 00:01:13]} 18.
g3 {[%clk 00:24:47]} {[%emt 00:08:26]} fxe4 {[%clk 00:14:06]} {[%emt 00:02:36]}
19. fxe4 {[%clk 00:25:02]} {[%emt 00:00:17]} Bh3 {[%clk 00:08:22]} {[%emt
00:06:13]} 20. Na7 {[%clk 00:24:43]} {[%emt 00:00:49]} Rce8 {[%clk 00:08:19]}
{[%emt 00:00:33]} 21. Nc6 {[%clk 00:21:25]} {[%emt 00:03:48]} Qd7 {[%clk
00:08:18]} {[%emt 00:00:30]} 22. Bxf6 {[%clk 00:17:38]} {[%emt 00:04:18]} Rxf6
{[%clk 00:08:16]} {[%emt 00:00:33]} 23. Kd1 {[%clk 00:16:09]} {[%emt 00:01:57]}
Bg2 {[%clk 00:07:34]} {[%emt 00:01:13]} 24. Rg1 {[%clk 00:13:35]} {[%emt
00:03:04]} Bxe4 {[%clk 00:07:25]} {[%emt 00:00:38]} 25. g4 {[%clk 00:12:19]}
{[%emt 00:01:46]} Ref8 {[%clk 00:06:45]} {[%emt 00:01:10]} 26. Qe1 {[%clk
00:11:06]} {[%emt 00:01:44]} Rf2 {[%clk 00:06:10]} {[%emt 00:01:05]} 27. Rc3
{[%clk 00:09:45]} {[%emt 00:01:52]} Rxh2 {[%clk 00:05:07]} {[%emt 00:01:32]} 28.
Re3 {[%clk 00:07:57]} {[%emt 00:02:18]} Bf3 {[%clk 00:04:25]} {[%emt 00:01:10]}
29. Qg3 {[%clk 00:08:01]} {[%emt 00:00:27]} Bxe2+ {[%clk 00:03:57]} {[%emt
00:01:00]} 30. Rxe2 {[%clk 00:08:28]} {[%emt 00:00:02]} Rxe2 {[%clk 00:03:53]}
{[%emt 00:00:34]} 31. Kxe2 {[%clk 00:08:56]} {[%emt 00:00:03]} Rf4 {[%clk
00:03:27]} {[%emt 00:00:55]} 32. Qh4 {[%clk 00:08:38]} {[%emt 00:00:47]} Bf6
{[%clk 00:03:18]} {[%emt 00:00:40]} 33. Qh3 {[%clk 00:08:04]} {[%emt 00:01:04]}
Bg5 {[%clk 00:03:29]} {[%emt 00:00:20]} 34. b3 {[%clk 00:07:41]} {[%emt
00:00:53]} Qf7 {[%clk 00:03:44]} {[%emt 00:00:14]} 35. Rg2 {[%clk 00:07:49]}
{[%emt 00:00:23]} Re4+ {[%clk 00:03:18]} {[%emt 00:03:08]} 0-1

[Event "2. Itzehoer Schach Open"]
[Site "Itzehoe, Germany"]
[Date "2023.04.29"]
[Round "2.16"]
[White "Wolf, Finn"]
[Black "Richter, Ruediger"]
[Result "0-1"]
[TimeControl "90 min / 40 Züge + 30 min + 30 Sek pro Zug"]
[WhiteElo "1677"]
[BlackElo "1869"]

1. e4 {[%clk 01:30:56]} {[%emt 00:00:03]} c5 {[%clk 01:30:53]} {[%emt
00:00:07]} 2. Nf3 {[%clk 01:31:19]} {[%emt 00:00:08]} e6 {[%clk 01:31:17]}
{[%emt 00:00:06]} 3. d4 {[%clk 01:31:07]} {[%emt 00:00:43]} cxd4 {[%clk
01:31:41]} {[%emt 00:00:06]} 4. Nxd4 {[%clk 01:31:18]} {[%emt 00:00:17]} Bc5
{[%clk 01:32:04]} {[%emt 00:00:08]} 5. Nb3 {[%clk 01:27:07]} {[%emt 00:04:41]}
Bb6 {[%clk 01:32:25]} {[%emt 00:00:08]} 6. Nc3 {[%clk 01:26:49]} {[%emt
00:00:48]} Ne7 {[%clk 01:32:43]} {[%emt 00:00:13]} 7. Be2 {[%clk 01:21:30]}
{[%emt 00:05:49]} O-O {[%clk 01:33:01]} {[%emt 00:00:12]} 8. O-O {[%clk
01:20:47]} {[%emt 00:01:12]} f5 {[%clk 01:33:23]} {[%emt 00:00:09]} 9. Bg5
{[%clk 01:16:40]} {[%emt 00:04:36]} fxe4 {[%clk 01:33:01]} {[%emt 00:00:53]} 10.
Qd6 {[%clk 01:14:44]} {[%emt 00:02:26]} Nbc6 {[%clk 01:32:43]} {[%emt
00:00:47]} 11. Nxe4 {[%clk 01:08:19]} {[%emt 00:06:56]} Bc7 {[%clk 01:31:55]}
{[%emt 00:01:17]} 12. Qd2 {[%clk 01:02:04]} {[%emt 00:06:45]} d5 {[%clk
01:32:13]} {[%emt 00:00:13]} 13. Nc3 {[%clk 01:00:43]} {[%emt 00:01:50]} Qd6
{[%clk 01:30:12]} {[%emt 00:02:29]} 14. g3 {[%clk 00:58:56]} {[%emt 00:02:20]}
a6 {[%clk 01:30:23]} {[%emt 00:00:19]} 15. Bxe7 {[%clk 00:55:19]} {[%emt
00:04:07]} Nxe7 {[%emt 00:01:53]} 16. a4 {[%clk 00:54:59]} e5 {[%clk 01:28:40]}
{[%emt 00:01:39]} 17. Rad1 {[%clk 00:52:13]} {[%emt 00:03:16]} Bh3 {[%clk
01:28:11]} {[%emt 00:00:57]} 18. Nxd5 {[%clk 00:46:33]} {[%emt 00:06:11]} Bxf1
{[%clk 01:24:34]} {[%emt 00:04:08]} 19. Bxf1 {[%clk 00:44:31]} {[%emt
00:02:32]} Rad8 {[%clk 01:24:43]} {[%emt 00:00:21]} 20. Nxc7 {[%clk 00:42:37]}
{[%emt 00:02:24]} Qxc7 {[%clk 01:24:58]} {[%emt 00:00:15]} 21. Qe2 {[%clk
00:42:50]} {[%emt 00:00:16]} Rxd1 {[%clk 01:23:52]} {[%emt 00:01:37]} 22. Qxd1
{[%clk 00:43:12]} {[%emt 00:00:08]} Rd8 {[%clk 01:16:30]} {[%emt 00:07:52]} 23.
Qe2 {[%clk 00:42:28]} {[%emt 00:01:14]} g6 {[%clk 01:15:55]} {[%emt 00:01:05]}
24. Qc4+ {[%clk 00:38:01]} {[%emt 00:04:56]} Qxc4 {[%clk 01:15:54]} {[%emt
00:00:32]} 25. Bxc4+ {[%clk 00:38:25]} {[%emt 00:00:07]} Kg7 {[%clk 01:15:15]}
{[%emt 00:01:08]} 26. Bd3 {[%clk 00:38:39]} {[%emt 00:00:16]} Rc8 {[%clk
01:11:17]} {[%emt 00:04:28]} 27. Nd2 {[%clk 00:38:14]} {[%emt 00:00:55]} Nf5
{[%clk 01:05:27]} {[%emt 00:06:20]} 28. Bxf5 {[%clk 00:38:13]} {[%emt
00:00:32]} gxf5 {[%clk 01:05:43]} {[%emt 00:00:13]} 29. c3 {[%clk 00:38:37]}
{[%emt 00:00:05]} Kf6 {[%clk 01:04:00]} {[%emt 00:02:13]} 30. Kf1 {[%clk
00:38:59]} {[%emt 00:00:08]} h5 {[%clk 01:01:14]} {[%emt 00:03:16]} 31. Ke2
{[%clk 00:39:10]} {[%emt 00:00:20]} h4 {[%clk 01:01:02]} {[%emt 00:00:41]} 32.
Ke3 {[%clk 00:38:45]} {[%emt 00:00:55]} b5 {[%clk 00:59:46]} {[%emt 00:01:47]}
33. axb5 {[%clk 00:38:52]} {[%emt 00:00:23]} axb5 {[%clk 01:00:14]} {[%emt
00:00:02]} 34. Ke2 {[%clk 00:37:29]} {[%emt 00:01:53]} Ra8 {[%clk 00:58:07]}
{[%emt 00:02:36]} 35. Kd1 {[%clk 00:36:22]} {[%emt 00:01:38]} Ra1+ {[%clk
00:57:04]} {[%emt 00:01:33]} 36. Ke2 {[%clk 00:36:45]} {[%emt 00:00:07]} Ra2
{[%clk 00:57:14]} {[%emt 00:00:19]} 37. b3 {[%clk 00:36:58]} {[%emt 00:00:18]}
Kg5 {[%clk 00:54:19]} {[%emt 00:03:24]} 38. Ke3 {[%clk 00:36:24]} {[%emt
00:01:05]} hxg3 {[%clk 00:44:53]} {[%emt 00:09:56]} 39. hxg3 {[%clk 00:36:32]}
{[%emt 00:00:21]} Kg4 {[%clk 00:44:43]} {[%emt 00:00:39]} 40. c4 {[%clk
00:36:32]} {[%emt 00:00:32]} bxc4 {[%clk 00:36:26]} {[%emt 00:08:47]} 41. bxc4
{[%clk 00:36:33]} {[%emt 00:00:29]} Ra3+ {[%clk 00:36:41]} {[%emt 00:00:15]} 42.
Ke2 {[%clk 00:36:49]} {[%emt 00:00:13]} Rc3 {[%clk 00:36:54]} {[%emt 00:00:17]}
43. Ke1 {[%clk 00:36:01]} {[%emt 00:01:19]} Kh3 {[%clk 00:31:27]} {[%emt
00:05:57]} 44. Ke2 {[%clk 00:34:52]} {[%emt 00:01:39]} Kg2 {[%clk 00:31:44]}
{[%emt 00:00:12]} 45. Ke1 {[%clk 00:35:01]} {[%emt 00:00:22]} e4 {[%clk
00:31:50]} {[%emt 00:00:23]} 46. Ke2 {[%clk 00:35:17]} {[%emt 00:00:15]} Rc2
{[%clk 00:32:09]} {[%emt 00:00:10]} 47. Ke3 {[%clk 00:35:22]} {[%emt 00:00:26]}
Rxd2 {[%clk 00:32:28]} {[%emt 00:00:11]} 48. Kxd2 {[%clk 00:35:43]} {[%emt
00:00:09]} Kxf2 {[%clk 00:32:49]} {[%emt 00:00:09]} 0-1

[Event "2. Itzehoer Schach Open"]
[Site "Itzehoe, Germany"]
[Date "2023.04.29"]
[Round "2.21"]
[White "Stehle, Fabian"]
[Black "Hansen, Fridolin"]
[Result "0-1"]
[TimeControl "90 min / 40 Züge + 30 min + 30 Sek pro Zug"]
[WhiteElo "1569"]
[BlackElo "1764"]

1. e4 {[%clk 01:30:58]} d6 {[%clk 01:30:43]} {[%emt 00:00:18]} 2. d4 {[%clk
01:31:22]} {[%emt 00:00:06]} Nf6 {[%clk 01:31:09]} {[%emt 00:00:05]} 3. Nc3
{[%clk 01:31:46]} {[%emt 00:00:05]} g6 {[%clk 01:31:34]} {[%emt 00:00:05]} 4.
Be3 {[%clk 01:32:03]} {[%emt 00:00:13]} Bg7 {[%clk 01:31:59]} {[%emt 00:00:05]}
5. h3 {[%clk 01:32:20]} {[%emt 00:00:13]} O-O {[%clk 01:32:18]} {[%emt
00:00:11]} 6. f4 {[%clk 01:32:42]} {[%emt 00:00:08]} c6 {[%clk 01:32:25]}
{[%emt 00:00:23]} 7. Nf3 {[%clk 01:32:03]} {[%emt 00:01:10]} b5 {[%clk
01:32:17]} {[%emt 00:00:38]} 8. e5 {[%clk 01:31:52]} {[%emt 00:00:40]} Nfd7
{[%clk 01:31:55]} {[%emt 00:00:52]} 9. Qd2 {[%clk 01:27:46]} {[%emt 00:04:36]}
Nb6 {[%clk 01:30:09]} {[%emt 00:02:17]} 10. Bd3 {[%clk 01:23:15]} {[%emt
00:05:00]} b4 {[%clk 01:28:23]} {[%emt 00:02:16]} 11. Ne4 {[%clk 01:23:21]}
{[%emt 00:00:24]} Nd5 {[%clk 01:28:15]} {[%emt 00:00:38]} 12. g4 {[%clk
01:16:38]} {[%emt 00:07:13]} Ba6 {[%clk 01:25:32]} {[%emt 00:03:14]} 13. f5
{[%clk 01:11:07]} {[%emt 00:06:00]} Bxd3 {[%clk 01:21:59]} {[%emt 00:04:03]} 14.
cxd3 {[%clk 01:09:20]} {[%emt 00:02:18]} Nxe3 {[%clk 01:19:08]} {[%emt
00:03:21]} 15. Qxe3 {[%clk 01:09:44]} {[%emt 00:00:05]} Nd7 {[%clk 01:15:34]}
{[%emt 00:04:04]} 16. f6 {[%clk 00:59:42]} {[%emt 00:10:32]} exf6 {[%clk
01:15:41]} {[%emt 00:00:24]} 17. Nxd6 {[%clk 00:59:35]} {[%emt 00:00:36]} fxe5
{[%clk 01:15:53]} {[%emt 00:00:18]} 18. dxe5 {[%clk 00:59:22]} {[%emt
00:00:43]} Nxe5 {[%clk 01:15:38]} {[%emt 00:00:45]} 19. Nxe5 {[%clk 00:57:40]}
{[%emt 00:02:11]} Qxd6 {[%clk 01:15:21]} {[%emt 00:00:48]} 20. Nc4 {[%clk
00:57:07]} {[%emt 00:01:04]} Qd5 {[%clk 01:14:13]} {[%emt 00:01:38]} 21. O-O-O
{[%clk 00:57:03]} {[%emt 00:00:33]} Rae8 {[%clk 01:14:14]} {[%emt 00:00:30]} 22.
Qxa7 {[%clk 00:56:02]} {[%emt 00:01:30]} Ra8 {[%clk 01:14:13]} {[%emt
00:00:31]} 23. Qf2 {[%clk 00:49:09]} {[%emt 00:07:22]} Rxa2 {[%clk 01:14:15]}
{[%emt 00:00:29]} 24. Kb1 {[%clk 00:47:34]} {[%emt 00:02:05]} Rfa8 {[%clk
01:13:34]} {[%emt 00:01:11]} 25. Rhe1 {[%clk 00:42:31]} {[%emt 00:05:33]} b3
{[%clk 01:07:39]} {[%emt 00:06:26]} 26. Kc1 {[%clk 00:41:59]} {[%emt 00:01:02]}
Bh6+ {[%clk 01:06:43]} {[%emt 00:01:25]} 0-1